bitfinex/quotes_ETHUSD_20240825
["timestamp","ask_amount","ask_price","bid_price","bid_amount"]
[1724568235573,3.62084,2761.8,2761.2,2.306]
[1724568235773,3.62084,2761.8,2761.2,5.92758]
[1724568236287,0.724153,2761.7,2761.2,5.92758]
[1724568236462,0.724153,2761.7,2761.2,2.306]
[1724568237337,4.345113,2761.7,2761.2,2.306]
[1724568238780,3.6209,2761.8,2761.2,2.306]
[1724568239091,3.6209,2761.8,2761.2,5.92761]
[1724568239450,2.262,2762.1,2760.4,3.0]
[1724568239451,3.62176,2761.1,2760.5,3.62243]
[1724568239673,0.362176,2761.0,2760.5,3.62243]
[1724568239985,3.62176,2761.1,2760.5,3.62243]
[1724568240733,3.62189,2761.0,2760.4,6.0125]
[1724568240950,5.88349,2761.3,2760.4,2.3899]
[1724568241235,3.62218,2760.8,2760.2,3.62292]
[1724568242334,3.62218,2760.8,2760.3,3.62279]
[1724568244934,3.62218,2760.8,2760.1,9.63587]
[1724568245165,7.24442,2760.8,2760.1,6.01287]
[1724568245387,4.34659,2760.8,2760.1,6.01283]
[1724568245681,7.96883,2760.8,2760.1,6.01283]
[1724568246103,4.34659,2760.8,2760.2,3.62292]
[1724568246635,3.62227,2760.7,2760.2,3.62292]
[1724568246947,3.62227,2760.7,2760.1,6.01294]
[1724568247153,3.62227,2760.7,2759.9,3.62325]
[1724568247154,3.62241,2760.6,2759.9,3.62325]
[1724568248177,3.62241,2760.6,2760.0,3.62316]
[1724568248377,3.62267,2760.4,2759.9,3.62329]
[1724568248581,3.62241,2760.6,2759.9,7.24652]
[1724568248782,4.3629806,2760.6,2759.9,3.62323]
[1724568249255,7.9854806,2760.6,2759.9,3.62323]
[1724568250096,7.9854906,2760.6,2759.9,3.62323]
[1724568250280,4.3629806,2760.6,2760.0,3.62316]
[1724568251599,0.51598666,2760.5,2760.0,3.62316]
[1724568255011,4.3629806,2760.6,2760.1,2.3899]
[1724568256336,7.9854706,2760.6,2760.1,2.3899]
[1724568256540,4.3629806,2760.6,2760.1,2.3899]
[1724568262045,4.34661,2760.8,2760.1,2.3899]
[1724568262245,4.34661,2760.8,2760.3,3.62267]
[1724568262246,0.72441,2760.8,2760.3,3.62267]
[1724568262444,4.34656,2760.8,2760.2,3.62284]
[1724568264515,7.96879,2760.8,2760.2,3.62284]
[1724568265156,7.9679368,2760.8,2760.2,3.62284]
[1724568265319,0.79679368,2760.7,2760.2,3.62284]
[1724568266155,4.41907368,2760.7,2760.2,3.62284]
[1724568266627,0.79679368,2760.7,2760.2,3.62284]
[1724568266833,0.7235568,2760.8,2760.2,3.62284]
[1724568267023,14.7039,2761.0,2760.4,3.62264]
[1724568267222,3.62203,2760.9,2760.4,3.62264]
[1724568267560,11.08193,2761.0,2760.4,3.62264]
[1724568267864,4.730213,2760.9,2760.4,3.62264]
[1724568270360,3.62202,2760.9,2760.4,3.62264]
[1724568272578,11.08193,2761.0,2760.4,3.62264]
[1724568272875,14.70391,2761.0,2760.5,2.3347]
[1724568273171,3.62203,2760.9,2760.5,2.3347]
[1724568275878,7.2439,2761.0,2760.5,2.3347]
[1724568276174,3.62193,2761.0,2760.5,2.93767961]
[1724568276482,7.2439,2761.0,2760.5,2.93767961]
[1724568276670,3.62193,2761.0,2760.5,2.3347]
[1724568277665,7.24391,2761.0,2760.5,2.3347]
[1724568278359,3.62193,2761.0,2760.5,2.3347]
[1724568278783,7.2439,2761.0,2760.5,2.3347]
[1724568279850,3.62193,2761.0,2760.5,2.3347]
[1724568282238,3.62166,2761.2,2760.5,3.292685]
[1724568282442,5.1321143,2761.2,2760.5,3.292685]
[1724568282652,3.62176,2761.1,2760.6,3.62235]
[1724568283465,3.62176,2761.1,2760.5,3.292685]
[1724568283669,3.62176,2761.1,2760.5,5.9572]
[1724568284437,5.1322143,2761.1,2760.5,7.22833451]
[1724568285682,3.62191,2761.0,2760.5,3.60583451]
[1724568285837,3.62191,2761.0,2760.5,3.50583451]
[1724568286968,3.62203,2760.9,2760.5,3.50583451]
[1724568290445,8.7540643,2761.1,2760.5,3.50583451]
[1724568290656,3.62188,2761.0,2760.5,7.12834451]
[1724568290857,5.1322043,2761.1,2760.5,8.20344396]
[1724568291081,3.62175,2761.1,2760.5,8.20344396]
[1724568291253,7.24358,2761.1,2760.5,8.20344396]
[1724568291617,1.5104543,2761.2,2760.8,2.2879]
[1724568291884,8.9704543,2761.3,2760.9,1.27113451]
[1724568292283,12.5920043,2761.3,2760.9,1.27113451]
[1724568292486,11.08155,2761.3,2760.9,1.27113451]
[1724568292982,14.70315,2761.3,2760.9,1.27113451]
[1724568293193,0.73895516,2761.2,2760.8,2.2879]
[1724568293356,11.08155,2761.3,2760.8,2.2879]
[1724568294384,3.62168,2761.2,2760.8,2.2879]
[1724568296981,3.62168,2761.2,2760.8,2.1879]
[1724568298884,3.62188,2761.0,2760.4,7.24517]
[1724568299184,3.62188,2761.0,2760.4,3.62258]
[1724568299370,7.24385,2761.0,2760.4,3.62258]
[1724568299954,3.62188,2761.0,2760.4,6.10398]
[1724568300709,3.62188,2761.0,2760.4,9.72655]
[1724568302765,3.62188,2761.0,2760.5,4.89357451]
[1724568303299,3.62169,2761.2,2760.7,1.27113451]
[1724568304068,7.24341,2761.2,2760.7,1.27113451]
[1724568304566,1.5104543,2761.3,2760.7,1.27113451]
[1724568304799,5.1319743,2761.3,2760.8,3.62213]
[1724568304960,3.62163,2761.2,2760.7,1.27113451]
[1724568305162,0.51320843,2761.1,2760.7,1.27113451]
[1724568305388,5.1320843,2761.2,2760.7,4.89338451]
[1724568305600,3.62163,2761.2,2760.7,4.89338451]
[1724568305799,5.1319443,2761.3,2760.7,4.89338451]
[1724568306098,5.1319443,2761.3,2760.8,3.62211]
[1724568306262,3.62149,2761.3,2760.9,2.4814]
[1724568306461,5.90482073,2761.3,2760.9,2.4814]
[1724568306802,2.28333073,2761.3,2760.9,2.4814]
[1724568307112,1.5104543,2761.3,2760.9,3.75253451]
[1724568308002,5.1319643,2761.3,2760.9,3.75253451]
[1724568308197,3.62166,2761.2,2760.7,3.75253451]
[1724568308398,3.62166,2761.2,2760.7,2.4814]
[1724568308399,5.1321143,2761.2,2760.7,2.4814]
[1724568308570,6.23740673,2761.2,2760.7,2.4814]
[1724568309014,4.72695243,2761.2,2760.7,2.4814]
[1724568309690,6.23740673,2761.2,2760.7,2.4814]
[1724568311018,9.85909673,2761.2,2760.7,2.4814]
[1724568311202,6.23740673,2761.2,2760.7,2.4814]
[1724568311397,9.85909673,2761.2,2760.7,2.4814]
[1724568311606,6.23740673,2761.2,2760.7,2.4814]
[1724568311914,4.72695243,2761.2,2760.7,2.4814]
[1724568312274,4.47544067,2761.1,2760.5,1.27113451]
[1724568312471,4.47544067,2761.1,2760.4,6.10399]
[1724568312472,3.62203,2760.9,2760.4,6.10399]
[1724568312712,5.92143,2760.9,2760.4,6.10399]
[1724568313691,3.62203,2760.9,2760.4,6.10399]
[1724568315218,3.62203,2760.9,2760.4,9.72658]
[1724568315375,3.62203,2760.9,2760.4,6.10399]
[1724568315783,3.62203,2760.9,2760.4,9.72658]
[1724568316784,8.28529497,2761.1,2760.5,1.27113451]
[1724568317105,3.62176,2761.1,2760.7,3.75253451]
[1724568318437,5.1319943,2761.3,2760.8,3.62213]
[1724568319817,1.5104543,2761.2,2760.8,3.62213]
[1724568320180,5.1319943,2761.3,2760.8,3.62213]
[1724568320423,6.42644803,2761.3,2760.8,3.62213]
[1724568320603,5.1321043,2761.2,2760.7,3.75253451]
[1724568321014,5.1321043,2761.2,2760.7,2.4814]
[1724568321739,1.5104543,2761.2,2760.7,6.10359]
[1724568322833,1.5104543,2761.3,2760.9,1.27113451]
[1724568323042,1.5104543,2761.3,2761.0,5.96855]
[1724568323636,1.5104543,2761.3,2761.0,2.3467]
[1724568323812,1.5104543,2761.4,2761.0,2.3467]
[1724568324137,8.9704543,2761.6,2761.1,4.89285451]
[1724568324337,1.5104543,2761.6,2761.1,4.89285451]
[1724568324539,8.7525143,2761.7,2761.1,4.89285451]
[1724568325119,3.62111,2761.6,2761.1,4.89285451]
[1724568325519,3.62111,2761.6,2761.1,1.27113451]
[1724568325831,3.62156,2761.3,2760.7,5.96889]
[1724568326353,3.62156,2761.3,2760.7,5.96888]
[1724568326933,3.62156,2761.3,2760.7,9.59106]
[1724568327510,3.62156,2761.3,2760.7,5.96888]
[1724568327831,6.11534,2761.1,2760.6,3.62236]
[1724568328219,3.62174,2761.1,2760.6,3.62236]
[1724568329539,8.7535743,2761.3,2760.7,4.89339451]
[1724568329849,3.62162,2761.2,2760.7,4.89339451]
[1724568332970,5.1320043,2761.3,2760.7,4.89339451]
[1724568333178,3.62155,2761.3,2760.7,4.89339451]
[1724568333519,3.62155,2761.3,2760.7,8.51558451]
[1724568333726,1.5104543,2761.4,2760.9,3.62195]
[1724568333940,1.5104543,2761.4,2761.0,2.3467]
[1724568334626,5.1318343,2761.4,2761.0,2.3467]
[1724568337624,8.7535143,2761.3,2760.7,5.96886]
[1724568337878,3.6217,2761.2,2760.7,2.3467]
[1724568338089,4.62417688,2761.2,2760.7,2.3467]
[1724568339842,6.13463118,2761.2,2760.7,2.3467]
[1724568340043,4.62417688,2761.2,2760.7,2.3467]
[1724568341663,5.1319343,2761.3,2760.7,5.96893]
[1724568341843,5.1319343,2761.3,2760.7,7.24006451]
[1724568342050,5.1319343,2761.3,2760.7,7.24002451]
[1724568342252,5.1319343,2761.3,2760.7,5.96889]
[1724568343297,3.62169,2761.2,2760.7,5.96889]
[1724568343582,3.62175,2761.1,2760.5,2.3121]
[1724568343746,3.62195,2761.0,2760.4,12.85179064]
[1724568343950,3.62195,2761.0,2760.4,10.96265]
[1724568344799,3.62195,2761.0,2760.2,1.27113451]
[1724568344800,1.27113451,2760.5,2760.2,0.75847784]
[1724568345002,5.90385,2760.1,2760.0,1.51695569]
[1724568345142,7.24636,2760.0,2759.9,1.51695569]
[1724568345347,10.9207837,2760.0,2759.9,1.51695569]
[1724568345594,3.62343,2759.9,2759.3,2.3121]
[1724568346061,3.62348,2759.8,2759.3,2.3121]
[1724568347203,3.62348,2759.8,2759.3,5.9362]
[1724568347498,6.16344175,2760.0,2759.3,5.9362]
[1724568347900,1.13416195,2760.3,2759.4,4.89510451]
[1724568348101,1.13416195,2760.3,2759.6,4.89483451]
[1724568348408,3.62296,2760.2,2759.7,2.3121]
[1724568348982,7.03768195,2760.4,2759.7,2.3121]
[1724568349161,3.62272,2760.4,2759.8,3.6234]
[1724568349368,4.01122061,2760.3,2759.8,3.6234]
[1724568349568,4.75661195,2760.6,2759.9,3.62331]
[1724568349777,3.62254,2760.5,2759.9,3.62324]
[1724568350366,3.62274,2760.4,2759.8,3.62344]
[1724568351494,3.62245,2760.6,2759.9,3.62326]
[1724568352020,3.62262,2760.5,2759.9,3.62326]
[1724568352369,3.62266,2760.4,2759.9,3.62326]
[1724568353268,3.62266,2760.4,2759.7,7.24702]
[1724568353524,8.95616247,2760.3,2759.1,3.62428]
[1724568353729,3.62352,2759.8,2759.2,3.6242]
[1724568354013,3.62352,2759.8,2759.3,2.3121]
[1724568355813,3.62333,2759.9,2759.4,3.62394]
[1724568356523,3.62348,2759.8,2759.2,4.4058064]
[1724568360655,7.24656,2760.0,2759.2,4.4058064]
[1724568360853,3.62332,2759.9,2759.3,3.62399]
[1724568361043,7.24653,2760.0,2759.4,3.62397]
[1724568361244,6.03976,2759.8,2759.2,3.62413]
[1724568361440,3.62325,2760.0,2759.3,3.62402]
[1724568361628,3.62325,2760.0,2759.4,3.62396]
[1724568361949,7.24653,2760.0,2759.4,3.62396]
[1724568362155,3.62325,2760.0,2759.4,3.62396]
[1724568362361,7.24654,2760.0,2759.4,3.62396]
[1724568362514,3.62325,2760.0,2759.4,3.62396]
[1724568362855,4.589504,2760.0,2759.4,3.62396]
[1724568363376,3.62299,2760.2,2759.6,3.62366]
[1724568363581,6.763541,2760.4,2759.7,3.62349]
[1724568364278,3.62292,2760.2,2759.6,3.62366]
[1724568364561,7.24594,2760.2,2759.6,3.62366]
[1724568364734,3.62307,2760.1,2759.6,3.62366]
[1724568365073,3.62307,2760.1,2759.5,2.4109]
[1724568365074,3.62341,2759.9,2759.5,2.4109]
[1724568367864,3.6231,2760.1,2759.6,3.62364]
[1724568368849,3.6231,2760.1,2759.5,6.03472]
[1724568369051,1.0386751,2760.2,2759.5,6.03472]
[1724568369362,3.62284,2760.3,2759.7,3.62356]
[1724568369580,3.62284,2760.3,2759.8,6.03427]
[1724568369734,3.6224,2760.6,2759.8,2.4109]
[1724568369932,9.8763,2760.9,2759.8,2.4109]
[1724568370148,1.19980531,2760.8,2759.8,2.4109]
[1724568370527,3.62287,2760.3,2759.8,2.4109]
[1724568370740,7.24578,2760.3,2759.8,2.4109]
[1724568370938,3.62287,2760.3,2759.8,2.4109]
[1724568372336,9.6615,2760.5,2759.8,6.03427]
[1724568372543,9.66153,2760.5,2759.9,3.6233]
[1724568372745,3.62267,2760.4,2759.9,3.6233]
[1724568376356,3.62287,2760.3,2759.8,2.4109]
[1724568376761,3.62296,2760.2,2759.8,2.4109]
[1724568376969,3.62279,2760.3,2759.8,2.4109]
[1724568380580,0.36226,2760.4,2759.8,6.0343]
[1724568382306,3.98496,2760.4,2759.8,6.0343]
[1724568384508,7.46,2760.6,2760.2,2.3503]
[1724568384684,7.46,2760.6,2760.2,5.97314]
[1724568385170,2.33396726,2760.8,2760.3,3.62277]
[1724568385370,1.19980531,2760.8,2760.3,3.62269]
[1724568386711,6.0282068,2760.9,2760.4,2.3503]
[1724568386932,4.89404485,2760.9,2760.4,2.3503]
[1724568387793,3.62207,2760.9,2760.4,2.3503]
[1724568388373,4.89404485,2760.9,2760.4,2.3503]
[1724568388785,3.62223,2760.8,2760.4,2.3503]
[1724568388988,4.58727368,2760.8,2760.4,2.3503]
[1724568389918,1.13416195,2761.0,2760.5,0.07244861]
[1724568390088,1.13416195,2761.2,2760.6,2.3503]
[1724568390407,1.13416195,2761.2,2760.6,5.97269]
[1724568390408,1.13416195,2761.1,2760.6,5.97269]
[1724568390797,6.0278168,2761.2,2760.6,5.97269]
[1724568391386,7.57314484,2761.2,2760.6,5.97269]
[1724568391813,3.62178,2761.1,2760.6,2.3503]
[1724568393591,7.24361,2761.1,2760.6,2.3503]
[1724568393911,3.62178,2761.1,2760.6,2.3503]
[1724568396224,3.62178,2761.1,2760.7,2.3503]
[1724568396387,3.62178,2761.1,2760.8,0.597269]
[1724568396714,3.62155,2761.3,2760.9,2.3503]
[1724568396894,7.24315,2761.3,2760.9,2.3503]
[1724568397094,7.24312,2761.3,2760.9,2.3503]
[1724568397287,3.62162,2761.2,2760.9,3.0072749]
[1724568398833,3.62155,2761.3,2760.9,3.0072749]
[1724568401719,7.24311,2761.3,2760.9,3.0072749]
[1724568402030,3.62155,2761.3,2760.9,3.0072749]
[1724568404424,7.24311,2761.3,2760.9,3.0072749]
[1724568404599,3.62155,2761.3,2760.9,3.0072749]
[1724568406853,7.24314,2761.3,2760.9,3.0072749]
[1724568407226,3.62155,2761.3,2760.9,3.0072749]
[1724568407429,7.24313,2761.3,2760.9,3.0072749]
[1724568408649,3.62155,2761.3,2760.9,3.0072749]
[1724568408858,7.24313,2761.3,2760.9,3.0072749]
[1724568409155,7.24312,2761.3,2760.9,3.0072749]
[1724568409314,3.62163,2761.2,2760.9,2.3503]
[1724568409950,3.62155,2761.3,2760.9,2.3503]
[1724568410352,7.24312,2761.3,2760.9,2.3503]
[1724568411159,3.62155,2761.3,2760.9,2.3503]
[1724568411327,3.62125,2761.5,2760.9,2.3503]
[1724568411328,7.24255,2761.5,2760.9,2.3503]
[1724568411510,3.62125,2761.5,2760.9,2.3503]
[1724568412119,3.62125,2761.5,2761.0,3.62186]
[1724568412341,3.62125,2761.5,2761.1,2.4692]
[1724568413013,7.24256,2761.5,2761.1,2.4692]
[1724568413221,3.62138,2761.4,2761.1,2.4692]
[1724568413653,3.62125,2761.5,2761.1,2.4692]
[1724568413859,7.24259,2761.5,2761.1,2.4692]
[1724568414866,3.62125,2761.5,2761.1,2.4692]
[1724568415270,7.24259,2761.5,2761.1,2.4692]
[1724568415564,3.62125,2761.5,2761.1,2.4692]
[1724568415769,3.62125,2761.5,2761.1,3.078311]
[1724568416337,3.092802,2761.6,2761.1,3.078311]
[1724568417426,3.092802,2761.6,2761.3,2.4692]
[1724568419862,6.713892,2761.6,2761.3,2.4692]
[1724568420776,6.713892,2761.6,2761.1,0.609111]
[1724568420988,6.713892,2761.6,2761.1,2.860211]
[1724568423380,6.713892,2761.6,2761.2,0.77527372]
[1724568424040,3.092802,2761.6,2761.2,0.77527372]
[1724568424239,3.092802,2761.6,2761.3,5.87257]
[1724568424747,3.092802,2761.6,2761.3,2.2511]
[1724568424953,3.62084,2761.8,2761.3,2.2511]
[1724568424954,3.25400497,2761.8,2761.3,2.2511]
[1724568425278,3.25400497,2761.8,2761.3,3.04296299]
[1724568425867,3.621,2761.7,2761.3,3.04296299]
[1724568426040,3.621,2761.7,2761.3,2.2511]
[1724568427660,6.02565815,2761.9,2761.3,2.2511]
[1724568427860,8.37569195,2761.9,2761.5,2.2511]
[1724568428064,3.62074,2761.9,2761.5,2.2511]
[1724568428248,4.75490195,2761.9,2761.5,2.2511]
[1724568428679,3.62074,2761.9,2761.5,2.2511]
[1724568428835,3.62083,2761.8,2761.5,2.2511]
[1724568429767,4.75472195,2762.0,2761.5,2.96542262]
[1724568430074,4.75472195,2762.0,2761.5,6.58663262]
[1724568430276,1.13416195,2761.9,2761.5,6.58656262]
[1724568430487,4.75472195,2762.0,2761.6,2.2511]
[1724568430794,3.62056,2762.0,2761.6,3.03683188]
[1724568431351,4.75472195,2762.0,2761.6,3.03683188]
[1724568434488,4.75472195,2762.0,2761.6,2.2511]
[1724568434970,1.13416195,2762.0,2761.6,2.2511]
[1724568435180,1.13416195,2762.1,2761.6,2.2511]
[1724568435388,4.75461195,2762.1,2761.6,2.2511]
[1724568435704,4.75461195,2762.1,2761.6,3.03683188]
[1724568436192,4.75461195,2762.1,2761.7,2.2511]
[1724568436193,1.13416195,2762.1,2761.7,2.2511]
[1724568436402,4.75450195,2762.2,2761.7,2.2511]
[1724568438774,3.62034,2762.2,2761.7,5.87203]
[1724568439102,3.62034,2762.2,2761.8,0.66577619]
[1724568439323,8.37488195,2762.2,2761.7,5.87203]
[1724568439461,4.75450195,2762.2,2761.7,5.87203]
[1724568441119,3.62034,2762.2,2761.7,5.87203]
[1724568441410,3.62034,2762.2,2761.8,2.3626]
[1724568441622,7.24072,2762.2,2761.8,2.3626]
[1724568442128,3.62034,2762.2,2761.8,2.3626]
[1724568443164,3.62034,2762.2,2761.8,3.16661681]
[1724568446540,3.62034,2762.2,2761.8,3.16661681]
[1724568448005,3.62018,2762.3,2761.8,3.16661681]
[1724568448254,3.62018,2762.3,2761.8,6.78742681]
[1724568448596,4.75428195,2762.4,2761.8,6.78742681]
[1724568448909,8.37444195,2762.4,2761.8,6.78742681]
[1724568449107,1.13416195,2762.5,2762.0,5.98305]
[1724568449344,5.13370188,2762.6,2762.1,2.3626]
[1724568449345,3.61988,2762.6,2762.1,2.3626]
[1724568450197,8.59416195,2762.7,2762.4,2.3626]
[1724568450402,7.46,2762.7,2762.4,2.3626]
[1724568450647,1.13416195,2762.8,2762.5,3.6198]
[1724568450886,1.13416195,2763.0,2762.6,2.3626]
[1724568451188,4.75328195,2763.1,2762.6,5.98237]
[1724568451524,4.75328195,2763.1,2762.6,2.3626]
[1724568452265,3.61912,2763.1,2762.6,5.98236]
[1724568452641,3.61912,2763.1,2762.6,2.3626]
[1724568452836,3.61912,2763.1,2762.7,2.3626]
[1724568454961,3.5602562,2763.2,2762.7,2.3626]
[1724568455164,3.61967,2762.7,2762.4,2.3626]
[1724568455975,3.61961,2762.8,2762.4,2.3626]
[1724568455976,7.23924,2762.8,2762.4,2.3626]
[1724568456178,3.61967,2762.7,2762.4,2.3626]
[1724568458035,1.2707562,2762.9,2762.4,2.3626]
[1724568458225,3.61954,2762.8,2762.4,2.3626]
[1724568460577,1.2707562,2762.7,2762.2,6.03561]
[1724568462984,4.8904362,2762.7,2762.2,2.4154]
[1724568463299,1.2707562,2762.7,2762.2,6.03565]
[1724568463777,1.2707562,2762.7,2762.2,2.4154]
[1724568463968,2.1688043,2762.7,2762.2,2.4154]
[1724568464192,5.7885443,2762.7,2762.2,2.4154]
[1724568465396,5.7885443,2762.7,2762.2,6.03569]
[1724568466858,2.1688043,2762.7,2762.2,6.03569]
[1724568468188,2.1688043,2762.7,2762.3,3.62016]
[1724568468576,0.8980481,2762.7,2762.3,3.62016]
[1724568470307,3.61954,2762.8,2762.3,3.62016]
[1724568471301,3.00734096,2762.9,2762.3,3.62008]
[1724568471691,6.62675096,2762.9,2762.3,7.24016]
[1724568472417,1.13416195,2762.8,2762.4,3.62002]
[1724568473617,1.13416195,2762.9,2762.5,2.3846]
[1724568474508,8.59416195,2763.0,2762.5,2.3846]
[1724568475127,1.13416195,2763.0,2762.6,3.61974]
[1724568476340,1.13416195,2762.9,2762.5,6.00448]
[1724568476629,1.13416195,2762.9,2762.5,2.3846]
[1724568477260,3.52063215,2762.9,2762.5,2.3846]
[1724568478499,3.52063215,2762.9,2762.3,6.00467]
[1724568478500,1.13416195,2762.8,2762.3,6.00467]
[1724568478961,7.14006215,2762.9,2762.3,6.00467]
[1724568479497,1.13416195,2762.8,2762.3,6.00467]
[1724568480788,1.13416195,2762.8,2762.4,3.62003]
[1724568484102,1.13416195,2762.8,2762.3,2.3846]
[1724568484302,1.13416195,2762.8,2762.3,6.00475]
[1724568485321,6.02461815,2762.7,2762.2,3.62018]
[1724568485865,1.13416195,2762.7,2762.4,3.62003]
[1724568486112,1.13416195,2762.9,2762.4,3.62003]
[1724568486294,1.13416195,2762.8,2762.3,2.2537]
[1724568486914,4.75355195,2762.9,2762.3,2.2537]
[1724568487927,1.13416195,2762.9,2762.4,3.62001]
[1724568488292,1.13416195,2762.8,2762.4,3.62001]
[1724568488983,1.13416195,2762.8,2762.3,2.841088]
[1724568489185,1.13416195,2762.8,2762.3,6.461248]
[1724568490270,3.61974,2762.7,2762.1,2.59346601]
[1724568490512,4.75390195,2762.7,2762.1,2.2537]
[1724568491824,2.40491815,2762.6,2762.1,2.2537]
[1724568492034,6.02503815,2762.4,2761.8,6.21423927]
[1724568492170,1.13416195,2762.3,2761.8,5.87446]
[1724568492376,1.13416195,2762.2,2761.8,5.87442]
[1724568492603,1.13416195,2762.3,2761.9,3.62065]
[1724568494319,1.13416195,2762.2,2761.9,3.62065]
[1724568494615,1.13416195,2762.3,2761.9,3.62065]
[1724568502252,1.13416195,2762.3,2762.0,2.3577]
[1724568502832,4.75421195,2762.4,2762.0,2.3577]
[1724568503138,8.37434195,2762.4,2762.0,2.3577]
[1724568503301,4.75421195,2762.4,2762.0,2.3577]
[1724568503501,4.75433195,2762.3,2762.0,2.3577]
[1724568503942,4.75433195,2762.3,2761.7,7.24186]
[1724568504126,4.75433195,2762.3,2761.7,10.45082162]
[1724568504127,1.13416195,2762.2,2761.7,10.45082162]
[1724568504333,1.13416195,2762.2,2761.7,10.79065553]
[1724568504842,1.13416195,2762.2,2761.7,7.16965553]
[1724568505004,1.13416195,2762.2,2761.7,6.82982162]
[1724568505811,1.13416195,2762.2,2761.7,10.45068162]
[1724568506531,4.75433195,2762.3,2761.7,10.79051838]
[1724568506908,4.75433195,2762.3,2761.7,7.16965838]
[1724568507110,4.75433195,2762.3,2761.7,6.82982162]
[1724568507418,1.13416195,2762.2,2761.7,6.82982162]
[1724568507613,4.75447195,2762.2,2761.7,6.82982162]
[1724568507813,4.75447195,2762.2,2761.7,5.97856]
[1724568509845,4.75447195,2762.2,2761.7,3.62086]
[1724568510411,6.02522815,2762.2,2761.7,3.62086]
[1724568511629,7.3583162,2762.0,2761.5,6.31870303]
[1724568511953,7.3583162,2762.0,2761.3,5.97911]
[1724568511954,1.2707562,2761.8,2761.3,5.97911]
[1724568512451,1.2707562,2761.8,2761.4,3.62133]
[1724568512452,1.13416195,2761.8,2761.4,3.62133]
[1724568512621,1.13416195,2761.9,2761.4,3.62133]
[1724568512820,7.91573054,2762.0,2761.4,3.62133]
[1724568513149,3.62071,2761.9,2761.4,3.62133]
[1724568521788,3.62071,2761.9,2761.5,2.3406]
[1724568523777,1.13416195,2762.2,2761.8,3.62071]
[1724568523933,1.13416195,2762.3,2761.9,3.62068]
[1724568524672,1.13416195,2762.3,2761.8,2.3406]
[1724568524839,1.13416195,2762.3,2761.8,5.96141]
[1724568525261,4.75434195,2762.3,2761.8,5.96141]
[1724568526673,4.75434195,2762.3,2761.8,2.3406]
[1724568526875,1.13416195,2762.2,2761.6,5.96157]
[1724568527255,4.75455195,2762.2,2761.6,5.96157]
[1724568530791,1.13416195,2762.2,2761.8,2.3406]
[1724568531003,4.75447195,2762.2,2761.8,2.3406]
[1724568531155,1.13416195,2762.2,2761.8,2.3406]
[1724568531668,4.75449195,2762.2,2761.8,2.3406]
[1724568534295,1.13416195,2762.1,2761.8,2.3406]
[1724568537706,1.13416195,2762.0,2761.8,2.3406]
[1724568539009,1.13416195,2762.0,2761.5,1.8669422]
[1724568539307,3.62083,2761.8,2761.4,2.4181]
[1724568539602,3.62083,2761.8,2761.5,0.76501234]
[1724568540375,3.62104,2761.7,2761.3,0.33987846]
[1724568540711,7.11880195,2761.7,2761.2,2.75797846]
[1724568540914,7.11880195,2761.7,2761.2,2.4181]
[1724568541137,3.62122,2761.5,2761.1,0.33987846]
[1724568541312,1.13416195,2761.5,2761.0,2.4181]
[1724568541513,6.02630815,2761.4,2760.7,2.4181]
[1724568541827,3.62162,2761.2,2760.7,2.4181]
[1724568542231,4.75578195,2761.2,2760.7,2.4181]
[1724568542432,1.2707562,2761.0,2760.4,0.33996214]
[1724568542729,4.8929862,2760.8,2760.2,4.38133784]
[1724568542901,4.8929862,2760.8,2760.2,1.35502419]
[1724568543101,3.62223,2760.8,2760.2,3.62291]
[1724568545853,3.62238,2760.7,2760.1,2.4181]
[1724568547353,3.6224,2760.6,2760.1,2.4181]
[1724568548034,3.6224,2760.6,2760.0,4.8938462]
[1724568549996,7.24491,2760.6,2760.0,3.62309]
[1724568550497,7.24491,2760.6,2760.0,4.71662562]
[1724568550897,3.6224,2760.6,2760.0,4.71662562]
[1724568552035,3.6224,2760.6,2760.0,5.98738182]
[1724568553884,3.6224,2760.6,2760.0,9.61047182]
[1724568554061,3.6224,2760.6,2760.1,3.623]
[1724568554257,3.6224,2760.6,2760.1,4.82584818]
[1724568554980,3.6222,2760.8,2760.2,3.62289]
[1724568555488,3.6224,2760.6,2760.1,1.20284818]
[1724568555666,3.6224,2760.6,2760.1,3.62305]
[1724568556210,2.3368,2760.7,2760.1,3.62305]
[1724568556419,2.3368,2760.7,2760.2,3.62292]
[1724568556580,3.6222,2760.8,2760.2,3.62292]
[1724568556761,3.6222,2760.8,2760.3,3.62277]
[1724568556965,4.8926962,2761.0,2760.4,5.90796]
[1724568557513,9.7968,2761.1,2760.4,5.90796]
[1724568557514,9.7968,2761.1,2760.4,5.90788]
[1724568557829,9.7968,2761.1,2760.6,3.6223]
[1724568557983,7.46,2761.1,2760.6,3.6223]
[1724568558366,3.62176,2761.1,2760.6,3.6223]
[1724568559063,5.9584,2761.3,2760.7,3.69467951]
[1724568559295,3.62163,2761.2,2760.6,5.97315082]
[1724568559490,7.24333,2761.2,2760.6,5.97315082]
[1724568559804,3.62163,2761.2,2760.6,5.97315082]
[1724568560106,2.3368,2761.3,2760.8,3.62212]
[1724568560290,3.62141,2761.4,2760.8,3.62212]
[1724568560491,3.62141,2761.4,2760.8,6.10092]
[1724568561108,3.62156,2761.3,2760.8,6.10092]
[1724568561405,3.62161,2761.2,2760.8,2.4788]
[1724568562193,3.62151,2761.3,2760.8,2.4788]
[1724568562611,3.62162,2761.2,2760.8,2.4788]
[1724568566296,3.62141,2761.4,2760.8,6.90499869]
[1724568567037,3.62148,2761.3,2760.8,3.28294869]
[1724568569985,3.62148,2761.3,2760.8,8.17574489]
[1724568571111,3.62135,2761.4,2760.8,11.79778489]
[1724568571333,3.62135,2761.4,2760.9,1.31193923]
[1724568572212,3.62151,2761.3,2760.8,8.17573489]
[1724568573145,3.62163,2761.2,2760.6,7.3718862]
[1724568573460,3.62176,2761.1,2760.6,6.10113]
[1724568575151,8.5138462,2761.3,2760.6,6.1011]
[1724568575448,7.24309,2761.3,2760.6,7.57228562]